[Event "44th Chess Olympiad Open 2022"]
[Site "Chennai"]
[Date "2022.07.31"]
[Round "3.28"]
[White "Delgado Ramirez, Neuris"]
[Black "Toczek, Grzegorz"]
[Result "1-0"]
[WhiteElo "2614"]
[BlackElo "2287"]
[Annotator "RC"]
[PlyCount "133"]
[EventDate "2022.??.??"]
[TimeControl "60"]

1. e4 {[%emt 0:00:09]} e5 {[%emt 0:00:17]} 2. Nf3 {[%emt 0:00:13]} Nc6 {
[%emt 0:00:05]} 3. Bb5 {[%emt 0:00:05]} a6 {[%emt 0:00:14]} 4. Ba4 {[%emt 0:00:
00]} Nf6 {[%emt 0:00:14]} 5. d3 {[%emt 0:00:29]} b5 {[%emt 0:00:15]} 6. Bb3 {
[%emt 0:03:48]} Be7 {[%emt 0:00:56]} 7. a4 {[%emt 0:00:00]} Rb8 {[%emt 0:04:29]
} 8. Nc3 {[%emt 0:02:49]} d6 {[%emt 0:06:01]} 9. h3 {[%emt 0:04:58]} b4 {
[%emt 0:05:45]} 10. Nd5 {[%emt 0:00:00]} Na5 {[%emt 0:02:16]} 11. Ba2 {[%emt 0:
00:00]} c5 {[%emt 0:09:35]} 12. Nd2 {[%emt 0:04:04]} O-O {[%emt 0:00:26]} 13.
O-O {[%emt 0:00:25]} Be6 {[%emt 0:21:47]} 14. Nxf6+ {[%emt 0:14:48]} Bxf6 {
[%emt 0:00:00]} 15. Nc4 {[%emt 0:00:13]} Nxc4 {[%emt 0:00:00]} 16. Bxc4 {
[%emt 0:00:35]} a5 {[%emt 0:00:00]} 17. Be3 {[%emt 0:01:26]} Rc8 {[%emt 0:00:
00]} 18. Qf3 {[%emt 0:01:12]} Qd7 {[%emt 0:00:00]} 19. c3 {[%emt 0:00:15]} Qb7
{[%emt 0:06:21]} 20. Rfc1 {[%emt 0:04:00]} Bxc4 {[%emt 0:05:09]} 21. dxc4 {
[%emt 0:00:06]} Be7 {[%emt 0:00:36]} 22. cxb4 {[%emt 0:01:19]} Qxb4 {[%emt 0:
00:00]} 23. Qe2 {[%emt 0:01:20]} Rb8 {[%emt 0:03:00]} 24. Rc2 {[%emt 0:00:38]}
Ra8 {[%emt 0:07:47]} 25. Bd2 {[%emt 0:01:14]} Qb7 {[%emt 0:00:04]} 26. g4 {
[%emt 0:06:09]} g6 {[%emt 0:01:39]} 27. Bh6 {[%emt 0:00:19]} Rfb8 {[%emt 0:00:
00]} 28. Ra3 {[%emt 0:00:41]} Qc6 {[%emt 0:00:25]} 29. Qd3 {[%emt 0:02:00]} Rb7
{[%emt 0:00:39]} 30. Bd2 {[%emt 0:00:35]} Kg7 {[%emt 0:04:51]} 31. Qe3 {
[%emt 0:02:49]} Rab8 {[%emt 0:02:11]} 32. Bc3 {[%emt 0:00:56]} h6 {[%emt 0:00:
00]} 33. Ra1 {[%emt 0:03:26]} Kh7 {[%emt 0:00:08]} 34. Qd3 {[%emt 0:04:32]} Rf8
{[%emt 0:07:03]} 35. Re2 {[%emt 0:00:00]} Bg5 {[%emt 0:00:32]} 36. Bxa5 {
[%emt 0:00:00]} Ra8 {[%emt 0:00:39]} 37. Bc3 {[%emt 0:00:00]} Rxa4 {[%emt 0:00:
00]} 38. Rxa4 {[%emt 0:04:53]} Qxa4 {[%emt 0:00:02]} 39. Re1 {[%emt 0:00:46]}
Qc6 {[%emt 0:00:59]} 40. Rd1 {[%emt 0:02:35]} Rb6 {[%emt 0:02:04]} 41. Kg2 {
[%emt 0:31:47]} Qe8 {[%emt 0:06:19]} 42. Ra1 {[%emt 0:00:00]} Qb8 {[%emt 0:00:
00]} 43. Kg3 {[%emt 0:00:00]} Qb7 {[%emt 0:01:17]} 44. Qd5 {[%emt 0:00:00]}
Qxd5 {[%emt 0:00:41]} 45. cxd5 {[%emt 0:00:00]} Rb7 {[%emt 0:11:28]} 46. Kf3 {
[%emt 0:00:00]} Kg7 {[%emt 0:00:14]} 47. Ke2 {[%emt 0:00:00]} Kf8 {[%emt 0:00:
00]} 48. Kd3 {[%emt 0:00:00]} Bh4 {[%emt 0:00:04]} 49. f3 {[%emt 0:00:00]} Bf2
{[%emt 0:00:15]} 50. Ra8+ {[%emt 0:01:19]} Ke7 {[%emt 0:04:20]} 51. Rh8 {
[%emt 0:00:00]} Kf6 {[%emt 0:00:15]} 52. f4 {[%emt 0:00:00]} Bd4 {[%emt 0:00:
00]} 53. f5 {[%emt 0:00:00]} Bxc3 {[%emt 0:01:00]} 54. bxc3 {[%emt 0:00:00]}
Kg5 {[%emt 0:01:06]} 55. Rh7 {[%emt 0:00:00]} gxf5 {[%emt 0:00:24]} 56. gxf5 {
[%emt 0:00:00]} h5 {[%emt 0:00:51]} 57. Rh8 {[%emt 0:00:00]} Kf4 {[%emt 0:00:
00]} 58. Rh6 {[%emt 0:00:00]} c4+ {[%emt 0:01:40]} 59. Kxc4 {[%emt 0:00:00]}
Kxe4 {[%emt 0:00:03]} 60. Rxd6 {[%emt 0:00:00]} Kxf5 {[%emt 0:00:04]} 61. Ra6 {
[%emt 0:00:00]} Ke4 {[%emt 0:05:49]} 62. d6 {[%emt 0:00:00]} f5 {[%emt 0:00:05]
} 63. Kc5 {[%emt 0:00:00]} Kd3 {[%emt 0:00:38]} 64. c4 {[%emt 0:00:00]} f4 {
[%emt 0:04:04]} 65. Kd5 {[%emt 0:01:23]} f3 {[%emt 0:01:02]} 66. Ra3+ {[%emt 0:
00:00]} Ke2 {[%emt 0:00:23]} 67. c5 {[%emt 0:00:50]} 1-0

[Event "44th Chess Olympiad Open 2022"]
[Site "Chennai"]
[Date "2022.07.31"]
[Round "3.28"]
[White "Blackburn, Jonathan L B"]
[Black "Cubas, Jose Fernando"]
[Result "0-1"]
[WhiteElo "2176"]
[BlackElo "2451"]
[Annotator "RC"]
[PlyCount "80"]
[EventDate "2022.??.??"]
[TimeControl "60"]

1. d4 {[%emt 0:00:03]} d5 {[%emt 0:00:13]} 2. c4 {[%emt 0:00:06]} c6 {[%emt 0:
00:00]} 3. cxd5 {[%emt 0:00:05]} cxd5 {[%emt 0:00:04]} 4. Nc3 {[%emt 0:00:04]}
Nf6 {[%emt 0:00:25]} 5. Bf4 {[%emt 0:00:03]} Qb6 {[%emt 0:06:16]} 6. e3 {
[%emt 0:00:09]} Bd7 {[%emt 0:05:00]} 7. Bd3 {[%emt 0:05:58]} e6 {[%emt 0:02:28]
} 8. Nge2 {[%emt 0:02:45]} Nh5 {[%emt 0:10:54]} 9. Be5 {[%emt 0:15:02]} Nc6 {
[%emt 0:02:52]} 10. g4 {[%emt 0:03:06]} Nf6 {[%emt 0:02:53]} 11. Bf4 {[%emt 0:
00:00]} Nxg4 {[%emt 0:02:32]} 12. h3 {[%emt 0:08:48]} Nf6 {[%emt 0:00:29]} 13.
Rg1 {[%emt 0:09:28]} a6 {[%emt 0:04:14]} 14. a3 {[%emt 0:06:58]} Nh5 {[%emt 0:
00:00]} 15. Bh2 {[%emt 0:00:00]} g6 {[%emt 0:00:29]} 16. b4 {[%emt 0:03:16]}
Be7 {[%emt 0:11:28]} 17. Na4 {[%emt 0:01:59]} Qd8 {[%emt 0:00:19]} 18. Nc5 {
[%emt 0:01:05]} Bc8 {[%emt 0:00:50]} 19. Rc1 {[%emt 0:04:10]} Bd6 {[%emt 0:00:
00]} 20. Bxd6 {[%emt 0:01:58]} Qxd6 {[%emt 0:00:09]} 21. f4 {[%emt 0:00:38]}
O-O {[%emt 0:02:54]} 22. Ng3 {[%emt 0:05:01]} Nxg3 {[%emt 0:00:21]} 23. Rxg3 {
[%emt 0:00:02]} b6 {[%emt 0:02:16]} 24. Na4 {[%emt 0:01:27]} Ne7 {[%emt 0:00:
00]} 25. h4 {[%emt 0:10:12]} Bd7 {[%emt 0:01:40]} 26. Nc3 {[%emt 0:02:22]} Nf5
{[%emt 0:02:20]} 27. Bxf5 {[%emt 0:00:00]} exf5 {[%emt 0:00:01]} 28. Qb3 {
[%emt 0:00:22]} Rfc8 {[%emt 0:05:00]} 29. Kd2 {[%emt 0:01:30]} Rc4 {[%emt 0:00:
00]} 30. Nxd5 {[%emt 0:03:42]} Rxc1 {[%emt 0:00:11]} 31. Kxc1 {[%emt 0:00:02]}
Rc8+ {[%emt 0:00:10]} 32. Nc3 {[%emt 0:04:31]} Be6 {[%emt 0:03:04]} 33. Qc2 {
[%emt 0:00:39]} a5 {[%emt 0:00:12]} 34. bxa5 {[%emt 0:02:50]} Qxa3+ {[%emt 0:
00:00]} 35. Kd2 {[%emt 0:00:03]} Bb3 {[%emt 0:02:33]} 36. Qc1 {[%emt 0:03:06]}
Qxc1+ {[%emt 0:02:55]} 37. Kxc1 {[%emt 0:00:04]} Rxc3+ {[%emt 0:00:03]} 38. Kb2
{[%emt 0:00:03]} Rd3 {[%emt 0:00:04]} 39. axb6 {[%emt 0:03:58]} Bc4 {[%emt 0:
00:00]} 40. h5 {[%emt 0:00:23]} Rb3+ {[%emt 0:00:57]} 0-1

[Event "44th Chess Olympiad Open 2022"]
[Site "Chennai"]
[Date "2022.07.31"]
[Round "3.28"]
[White "Zacarias, M Ruben D"]
[Black "Bullen, Alex"]
[Result "1-0"]
[WhiteElo "2175"]
[BlackElo "2106"]
[Annotator "RC"]
[PlyCount "73"]
[EventDate "2022.??.??"]
[TimeControl "60"]

1. e4 {[%emt 0:00:06]} c6 {[%emt 0:00:06]} 2. d4 {[%emt 0:00:08]} d5 {[%emt 0:
00:00]} 3. e5 {[%emt 0:00:09]} Bf5 {[%emt 0:00:08]} 4. h4 {[%emt 0:00:07]} h5 {
[%emt 0:00:08]} 5. Bd3 {[%emt 0:00:05]} Bxd3 {[%emt 0:00:42]} 6. Qxd3 {[%emt 0:
00:00]} Qa5+ {[%emt 0:02:58]} 7. Nd2 {[%emt 0:03:11]} e6 {[%emt 0:01:09]} 8.
Ngf3 {[%emt 0:00:35]} Nh6 {[%emt 0:01:22]} 9. O-O {[%emt 0:00:34]} Nf5 {
[%emt 0:00:48]} 10. c4 {[%emt 0:01:18]} Be7 {[%emt 0:03:28]} 11. g3 {[%emt 0:
00:00]} Nd7 {[%emt 0:01:15]} 12. b3 {[%emt 0:01:47]} O-O {[%emt 0:08:20]} 13.
Bb2 {[%emt 0:01:58]} Rfd8 {[%emt 0:02:44]} 14. a3 {[%emt 0:04:55]} dxc4 {
[%emt 0:04:44]} 15. Nxc4 {[%emt 0:02:13]} Qa6 {[%emt 0:06:57]} 16. Qc2 {
[%emt 0:04:44]} Nb6 {[%emt 0:01:15]} 17. Ne3 {[%emt 0:00:31]} Nh6 {[%emt 0:00:
00]} 18. Ng5 {[%emt 0:04:05]} Bxg5 {[%emt 0:06:42]} 19. hxg5 {[%emt 0:00:05]}
Ng4 {[%emt 0:01:47]} 20. Ng2 {[%emt 0:01:51]} Nd5 {[%emt 0:03:49]} 21. Rae1 {
[%emt 0:07:30]} c5 {[%emt 0:12:03]} 22. dxc5 {[%emt 0:00:25]} Ne7 {[%emt 0:00:
00]} 23. f3 {[%emt 0:02:18]} Rd3 {[%emt 0:03:03]} 24. fxg4 {[%emt 0:01:05]}
Rxg3 {[%emt 0:00:07]} 25. Qf2 {[%emt 0:00:13]} Qd3 {[%emt 0:03:18]} 26. Re3 {
[%emt 0:05:21]} Rxe3 {[%emt 0:01:32]} 27. Qxe3 {[%emt 0:00:21]} Qc2 {[%emt 0:
00:00]} 28. Qf2 {[%emt 0:04:54]} Qg6 {[%emt 0:00:07]} 29. Nh4 {[%emt 0:04:57]}
Qd3 {[%emt 0:01:42]} 30. Qxf7+ {[%emt 0:02:31]} Kh8 {[%emt 0:00:05]} 31. Qxh5+
{[%emt 0:00:09]} Kg8 {[%emt 0:00:05]} 32. Qf7+ {[%emt 0:01:43]} Kh8 {[%emt 0:
00:00]} 33. Qxe7 {[%emt 0:05:36]} Qe3+ {[%emt 0:00:11]} 34. Rf2 {[%emt 0:00:06]
} Qe1+ {[%emt 0:00:12]} 35. Kg2 {[%emt 0:00:04]} Qe4+ {[%emt 0:00:11]} 36. Kg3
{[%emt 0:00:12]} Qe3+ {[%emt 0:01:23]} 37. Nf3 {[%emt 0:00:07]} 1-0

[Event "44th Chess Olympiad Open 2022"]
[Site "Chennai"]
[Date "2022.07.31"]
[Round "3.28"]
[White "Pleasants, Allan J"]
[Black "Jodorcovsky Werjivker, Paulo"]
[Result "0-1"]
[WhiteElo "2024"]
[BlackElo "2213"]
[Annotator "ChessBase"]
[PlyCount "80"]
[EventDate "2022.??.??"]
[TimeControl "60"]

1. d4 {[%emt 0:00:04]} d5 {[%emt 0:00:08]} 2. Nf3 {[%emt 0:00:11]} e6 {[%emt 0:
00:00]} 3. g3 {[%emt 0:00:24]} Nf6 {[%emt 0:01:21]} 4. Bg2 {[%emt 0:00:07]} c5
{[%emt 0:02:36]} 5. O-O {[%emt 0:11:21]} cxd4 {[%emt 0:05:27]} 6. Nxd4 {
[%emt 0:02:11]} e5 {[%emt 0:00:13]} 7. Nb3 {[%emt 0:00:54]} Be6 {[%emt 0:00:47]
} 8. c4 {[%emt 0:10:33]} Nc6 {[%emt 0:00:44]} 9. cxd5 {[%emt 0:01:34]} Bxd5 {
[%emt 0:05:23]} 10. Nc3 {[%emt 0:01:09]} Bxg2 {[%emt 0:00:53]} 11. Kxg2 {
[%emt 0:00:28]} h6 {[%emt 0:06:02]} 12. e4 {[%emt 0:04:42]} Be7 {[%emt 0:00:49]
} 13. Be3 {[%emt 0:06:40]} O-O {[%emt 0:00:42]} 14. Qe2 {[%emt 0:02:10]} Qc8 {
[%emt 0:06:08]} 15. Rfd1 {[%emt 0:06:21]} Qe6 {[%emt 0:02:44]} 16. Nd5 {
[%emt 0:11:56]} Rfc8 {[%emt 0:07:39]} 17. f3 {[%emt 0:00:00]} Nb4 {[%emt 0:00:
00]} 18. Nxe7+ {[%emt 0:08:24]} Qxe7 {[%emt 0:00:12]} 19. a3 {[%emt 0:00:39]}
Nc2 {[%emt 0:02:30]} 20. Rac1 {[%emt 0:00:21]} Nxe3+ {[%emt 0:00:42]} 21. Qxe3
{[%emt 0:00:07]} b6 {[%emt 0:00:20]} 22. Rd3 {[%emt 0:03:15]} Rxc1 {[%emt 0:00:
00]} 23. Nxc1 {[%emt 0:01:10]} Rc8 {[%emt 0:00:29]} 24. Rc3 {[%emt 0:00:22]}
Qd7 {[%emt 0:01:49]} 25. Rxc8+ {[%emt 0:07:39]} Qxc8 {[%emt 0:00:07]} 26. Qd2 {
[%emt 0:07:00]} Nh7 {[%emt 0:07:44]} 27. Qc3 {[%emt 0:11:05]} Qxc3 {[%emt 0:00:
00]} 28. bxc3 {[%emt 0:00:00]} Nf6 {[%emt 0:00:04]} 29. Nd3 {[%emt 0:00:00]}
Nd7 {[%emt 0:00:07]} 30. Nb4 {[%emt 0:05:06]} Kf8 {[%emt 0:05:21]} 31. Nc6 {
[%emt 0:00:00]} a6 {[%emt 0:04:17]} 32. Kf2 {[%emt 0:00:00]} f6 {[%emt 0:00:49]
} 33. Ke3 {[%emt 0:00:00]} Kf7 {[%emt 0:03:57]} 34. h4 {[%emt 0:00:00]} h5 {
[%emt 0:01:18]} 35. f4 {[%emt 0:01:45]} Ke6 {[%emt 0:01:49]} 36. f5+ {[%emt 0:
00:00]} Kd6 {[%emt 0:01:15]} 37. Nd8 {[%emt 0:00:00]} Nc5 {[%emt 0:00:00]} 38.
Kf3 {[%emt 0:00:00]} Kd7 {[%emt 0:00:17]} 39. Nf7 {[%emt 0:00:00]} Ke7 {
[%emt 0:03:10]} 40. Nh8 {[%emt 0:00:00]} Na4 {[%emt 0:00:14]} 0-1

[Event "44th Chess Olympiad Open 2022"]
[Site "Chennai"]
[Date "2022.07.31"]
[Round "3.29"]
[White "Macovei, Andrei"]
[Black "Altorky, Amer"]
[Result "0-1"]
[WhiteElo "2478"]
[BlackElo "2040"]
[Annotator "RC"]
[PlyCount "65"]
[EventDate "2022.??.??"]
[TimeControl "60"]

1. e4 {[%emt 0:00:19]} e5 {[%emt 0:00:28]} 2. Nf3 {[%emt 0:00:00]} Nc6 {
[%emt 0:00:14]} 3. Bc4 {[%emt 0:00:27]} Nf6 {[%emt 0:00:48]} 4. d3 {[%emt 0:00:
00]} Bc5 {[%emt 0:00:42]} 5. O-O {[%emt 0:00:18]} O-O {[%emt 0:01:02]} 6. c3 {
[%emt 0:01:03]} d6 {[%emt 0:01:30]} 7. a4 {[%emt 0:00:50]} a5 {[%emt 0:02:14]}
8. Nbd2 {[%emt 0:00:41]} Ba7 {[%emt 0:03:38]} 9. Re1 {[%emt 0:02:08]} Ng4 {
[%emt 0:05:54]} 10. Re2 {[%emt 0:09:19]} Kh8 {[%emt 0:03:35]} 11. h3 {[%emt 0:
00:00]} f5 12. Nf1 {[%emt 0:07:37]} Nf6 13. Be3 {[%emt 0:11:59]} Bxe3 {[%emt 0:
00:00]} 14. Rxe3 {[%emt 0:00:00]} f4 15. Re1 {[%emt 0:03:29]} Qe7 {[%emt 0:00:
00]} 16. d4 {[%emt 0:00:00]} Bd7 {[%emt 0:14:47]} 17. Qb3 {[%emt 0:00:00]} Ne8
{[%emt 0:07:37]} 18. Rad1 {[%emt 0:03:34]} g5 {[%emt 0:06:08]} 19. dxe5 {
[%emt 0:04:49]} dxe5 {[%emt 0:01:19]} 20. Nxg5 {[%emt 0:08:24]} Nd6 {[%emt 0:
00:00]} 21. Be6 {[%emt 0:05:57]} Bxe6 {[%emt 0:04:22]} 22. Nxe6 {[%emt 0:00:26]
} Rf6 {[%emt 0:02:22]} 23. Nc5 {[%emt 0:03:25]} Rg8 {[%emt 0:01:22]} 24. Rd3 {
[%emt 0:08:57]} b6 {[%emt 0:05:13]} 25. Na6 {[%emt 0:01:09]} f3 {[%emt 0:03:23]
} 26. g3 {[%emt 0:00:16]} Qd7 {[%emt 0:01:14]} 27. g4 {[%emt 0:05:23]} h5 {
[%emt 0:02:26]} 28. Ng3 {[%emt 0:02:01]} hxg4 {[%emt 0:00:46]} 29. h4 {[%emt 0:
00:00]} Qh7 {[%emt 0:01:20]} 30. h5 {[%emt 0:01:40]} Rg5 {[%emt 0:00:47]} 31.
Nxc7 {[%emt 0:02:45]} Rxh5 {[%emt 0:01:54]} 32. Nd5 {[%emt 0:00:31]} Rfh6 {
[%emt 0:00:14]} 33. Qd1 {[%emt 0:02:18]} 0-1

[Event "44th Chess Olympiad Open 2022"]
[Site "Chennai"]
[Date "2022.07.31"]
[Round "3.29"]
[White "Ceres, Dragos"]
[Black "Eiti, Bashir"]
[Result "1-0"]
[WhiteElo "2378"]
[BlackElo "2337"]
[Annotator "RC"]
[PlyCount "63"]
[EventDate "2022.??.??"]
[TimeControl "60"]

1. e4 {[%emt 0:00:02]} d6 {[%emt 0:00:15]} 2. d4 {[%emt 0:00:15]} Nf6 {[%emt 0:
00:00]} 3. Nc3 {[%emt 0:00:06]} Nbd7 {[%emt 0:00:03]} 4. Nf3 {[%emt 0:00:10]}
e5 {[%emt 0:00:04]} 5. Bc4 {[%emt 0:00:22]} Be7 {[%emt 0:00:06]} 6. a4 {
[%emt 0:00:08]} c6 {[%emt 0:00:03]} 7. O-O {[%emt 0:00:08]} Qc7 {[%emt 0:01:12]
} 8. h3 {[%emt 0:03:26]} h6 {[%emt 0:00:10]} 9. a5 {[%emt 0:03:24]} Nf8 {
[%emt 0:06:17]} 10. Be3 {[%emt 0:06:10]} g5 {[%emt 0:03:33]} 11. Nd2 {[%emt 0:
00:00]} Ng6 {[%emt 0:06:23]} 12. Re1 {[%emt 0:08:41]} g4 {[%emt 0:03:07]} 13.
hxg4 {[%emt 0:03:04]} Nxg4 {[%emt 0:00:50]} 14. Nf1 {[%emt 0:01:32]} Rg8 {
[%emt 0:11:09]} 15. Ne2 {[%emt 0:08:19]} Nh4 {[%emt 0:04:22]} 16. Neg3 {
[%emt 0:00:24]} exd4 {[%emt 0:12:11]} 17. Bxd4 {[%emt 0:01:36]} Ne5 {[%emt 0:
00:00]} 18. Be2 {[%emt 0:01:54]} Bg5 {[%emt 0:14:21]} 19. Nh5 {[%emt 0:13:45]}
Qd7 {[%emt 0:06:03]} 20. Nfg3 {[%emt 0:02:31]} Be7 {[%emt 0:14:12]} 21. Ra3 {
[%emt 0:03:03]} c5 {[%emt 0:02:44]} 22. Bc3 {[%emt 0:04:12]} Kf8 {[%emt 0:00:
00]} 23. Bd2 {[%emt 0:04:13]} Nxg2 {[%emt 0:01:40]} 24. Bxh6+ {[%emt 0:02:25]}
Ke8 {[%emt 0:00:02]} 25. Kxg2 {[%emt 0:00:30]} Qh3+ {[%emt 0:00:08]} 26. Kg1 {
[%emt 0:00:05]} Ng4 {[%emt 0:00:40]} 27. Bxg4 {[%emt 0:00:51]} Bxg4 {[%emt 0:
00:00]} 28. Qd5 {[%emt 0:00:25]} Bxh5 {[%emt 0:00:21]} 29. e5 {[%emt 0:00:22]}
Qe6 {[%emt 0:01:52]} 30. Qxb7 {[%emt 0:00:53]} Rd8 {[%emt 0:00:21]} 31. Qc6+ {
[%emt 0:02:12]} Qd7 {[%emt 0:00:16]} 32. exd6 {[%emt 0:00:11]} 1-0

[Event "44th Chess Olympiad Open 2022"]
[Site "Chennai"]
[Date "2022.07.31"]
[Round "3.29"]
[White "Koniahli, Malek."]
[Black "Hamitevici, Vladimir"]
[Result "0-1"]
[WhiteElo "2238"]
[BlackElo "2473"]
[Annotator "RC"]
[PlyCount "78"]
[EventDate "2022.??.??"]
[TimeControl "60"]

1. c4 {[%emt 0:00:03]} f5 {[%emt 0:01:53]} 2. Nc3 {[%emt 0:00:14]} Nf6 {
[%emt 0:00:07]} 3. g3 {[%emt 0:00:05]} g6 {[%emt 0:02:17]} 4. Bg2 {[%emt 0:00:
00]} Bg7 {[%emt 0:00:05]} 5. d3 {[%emt 0:00:25]} O-O {[%emt 0:03:17]} 6. e4 {
[%emt 0:01:32]} d6 {[%emt 0:01:21]} 7. Nge2 {[%emt 0:00:11]} c5 {[%emt 0:01:43]
} 8. O-O {[%emt 0:03:43]} Nc6 {[%emt 0:02:11]} 9. h3 {[%emt 0:06:07]} Be6 {
[%emt 0:02:15]} 10. b3 {[%emt 0:08:04]} Qd7 {[%emt 0:05:42]} 11. Kh2 {[%emt 0:
00:00]} Bf7 {[%emt 0:00:41]} 12. Be3 {[%emt 0:01:33]} e5 {[%emt 0:07:05]} 13.
Qd2 {[%emt 0:05:52]} Nd4 {[%emt 0:03:29]} 14. Rae1 {[%emt 0:03:36]} Rae8 {
[%emt 0:08:27]} 15. Bg5 {[%emt 0:03:50]} Nh5 {[%emt 0:02:19]} 16. exf5 {
[%emt 0:07:03]} gxf5 {[%emt 0:03:46]} 17. Nd5 {[%emt 0:00:31]} Bg6 {[%emt 0:00:
00]} 18. b4 {[%emt 0:15:42]} Ne6 {[%emt 0:01:58]} 19. Bh4 {[%emt 0:13:30]} cxb4
{[%emt 0:07:12]} 20. Nxb4 {[%emt 0:03:03]} f4 {[%emt 0:02:26]} 21. Bf3 {
[%emt 0:00:16]} Bh6 {[%emt 0:00:49]} 22. g4 {[%emt 0:03:39]} Ng3 {[%emt 0:00:
00]} 23. Rg1 {[%emt 0:00:45]} Nxe2 {[%emt 0:08:10]} 24. Qxe2 {[%emt 0:00:07]}
Qa4 {[%emt 0:03:55]} 25. Rb1 {[%emt 0:01:59]} Nc5 {[%emt 0:04:05]} 26. Rgd1 {
[%emt 0:03:17]} Qa3 {[%emt 0:04:48]} 27. Be4 {[%emt 0:03:48]} f3 {[%emt 0:00:
00]} 28. Qc2 {[%emt 0:00:29]} Bf4+ {[%emt 0:01:32]} 29. Kh1 {[%emt 0:00:31]}
Kg7 {[%emt 0:00:47]} 30. Nd5 {[%emt 0:00:55]} Rf7 {[%emt 0:00:19]} 31. Nc3 {
[%emt 0:03:41]} Bxe4 {[%emt 0:08:18]} 32. dxe4 {[%emt 0:00:22]} Re6 {[%emt 0:
00:00]} 33. Nb5 {[%emt 0:00:39]} Qa6 {[%emt 0:00:30]} 34. g5 {[%emt 0:00:50]}
Rg6 {[%emt 0:01:23]} 35. Rd5 {[%emt 0:00:53]} Qc6 {[%emt 0:00:37]} 36. Rg1 {
[%emt 0:01:46]} a6 {[%emt 0:00:49]} 37. Nc3 {[%emt 0:00:02]} Qc8 {[%emt 0:00:
00]} 38. Rg4 {[%emt 0:00:04]} h5 {[%emt 0:00:21]} 39. gxh6+ {[%emt 0:02:25]}
Kh7 {[%emt 0:00:02]} 0-1